[Event "FIDE World Cup O10-A 2024"]
[Site "Batumi"]
[Date "2024.06.27"]
[Round "5.1"]
[White "Chakrabarty, Reyaansh"]
[Black "Vyom Malhotra"]
[Result "1-0"]
[ECO "C55"]
[WhiteElo "2185"]
[BlackElo "1803"]
[Annotator "RC"]
[PlyCount "199"]
[EventDate "2024.06.23"]
[EventType "swiss"]
[EventCountry "GEO"]
[SourceTitle "playchess.com"]
[Source "ChessBase"]
[SourceQuality "1"]
[TimeControl "5400+30"]

1. e4 {[%emt 0:00:41]} e5 {[%emt 0:01:23]} 2. Nf3 {[%emt 0:00:05]} Nc6 {[%emt 0:00:12]} 3. Bc4 {[%emt 0:00:08]} Nf6 {[%emt 0:00:08]} 4. d3 {[%emt 0:00:04]} Be7 {[%emt 0:00:17]} 5. O-O {[%emt 0:00:05]} O-O {[%emt 0:00:20]} 6. Re1 {[%emt 0:00:05]} d6 {[%emt 0:00:17]} 7. a4 {[%emt 0:00:04]} Na5 {[%emt 0:00:07]} 8. Ba2 {[%emt 0:00:04]} c5 {[%emt 0:00:16]} 9. Bd2 {[%emt 0:00:03]} Nc6 {[%emt 1:32:00]} 10. Na3 {[%emt 0:01:58]} Be6 {[%emt 0:00:30]} 11. Bxe6 {[%emt 0:08:53]} fxe6 {[%emt 0:00:00]} 12. Nc4 {[%emt 1:24:20]} Qe8 {[%emt 0:01:00]} 13. c3 {[%emt 0:00:30]} Nh5 {[%emt 0:00:30]} 14. Kh1 {[%emt 0:00:00]} Nf4 {[%emt 0:00:30]} 15. Bxf4 {[%emt 0:00:00]} Rxf4 {[%emt 0:00:30]} 16. Qe2 {[%emt 0:01:30]} Qh5 {[%emt 0:00:00]} 17. Ng1 {[%emt 0:00:30]} Qh6 {[%emt 0:01:00]} 18. g3 {[%emt 0:00:00]} Rf7 {[%emt 0:00:00]} 19. Rab1 {[%emt 0:00:00]} Raf8 {[%emt 0:00:00]} 20. f3 {[%emt 0:01:30]} Qg6 {[%emt 0:01:30]} 21. Ne3 {[%emt 0:00:30]} h5 {[%emt 0:00:30]} 22. Rf1 {[%emt 0:00:00]} Qh6 {[%emt 0:00:00]} 23. Kg2 {[%emt 0:00:00]} Bg5 {[%emt 0:00:00]} 24. Nc4 {[%emt 0:00:00]} Rd7 {[%emt 0:00:00]} 25. Nh3 {[%emt 0:02:00]} h4 {[%emt 0:02:00]} 26. Nxg5 {[%emt 0:00:00]} Qxg5 {[%emt 0:00:00]} 27. Qe3 {[%emt 0:01:00]} Qh5 {[%emt 0:00:00]} 28. Rbe1 {[%emt 0:00:00]} h3+ {[%emt 0:01:30]} 29. Kg1 {[%emt 0:00:00]} Ne7 {[%emt 0:00:00]} 30. Qe2 {[%emt 0:00:00]} Ng6 {[%emt 0:00:00]} 31. Ne3 {[%emt 0:02:00]} Rdf7 {[%emt 0:00:00]} 32. Ng4 {[%emt 0:00:00]} Qg5 {[%emt 0:00:00]} 33. Rf2 Qd8 {[%emt 0:02:30]} 34. Qf1 {[%emt 0:01:30]} Qb6 {[%emt 0:00:00]} 35. Qxh3 {[%emt 0:00:30]} Rxf3 {[%emt 0:01:00]} 36. Rxf3 {[%emt 0:00:00]} Rxf3 {[%emt 0:00:00]} 37. Qh5 {[%emt 0:00:00]} c4+ {[%emt 0:00:00]} 38. Kg2 {[%emt 0:00:00]} Nf4+ {[%emt 0:00:00]} 39. gxf4 {[%emt 0:00:00]} Rxf4 {[%emt 0:00:00]} 40. dxc4 {[%emt 0:00:00]} Qxb2+ {[%emt 0:00:00]} 41. Kh3 {[%emt 0:03:00]} Qxc3+ {[%emt 0:00:00]} 42. Re3 {[%emt 0:00:00]} Qxc4 {[%emt 0:00:00]} 43. Qe8+ {[%emt 0:00:00]} Kh7 {[%emt 0:00:00]} 44. Qh5+ {[%emt 0:00:00]} Kg8 {[%emt 0:00:00]} 45. Qe8+ {[%emt 0:00:00]} Kh7 {[%emt 0:00:00]} 46. Rg3 {[%emt 0:00:00]} Qf1+ {[%emt 0:00:00]} 47. Kh4 {[%emt 0:00:00]} Rxe4 {[%emt 0:06:00]} 48. Qh5+ {[%emt 0:00:39]} Kg8 {[%emt 0:00:00]} 49. Qe8+ {[%emt 0:00:02]} Kh7 {[%emt 0:01:00]} 50. Qxe6 {[%emt 0:03:49]} Qf6+ {[%emt 0:00:00]} 51. Qxf6 {[%emt 0:00:00]} gxf6 {[%emt 0:01:00]} 52. Kh5 {[%emt 0:00:00]} Rf4 {[%emt 0:00:00]} 53. Rd3 {[%emt 0:00:00]} Rf5+ {[%emt 0:00:00]} 54. Kh4 {[%emt 0:02:00]} Kg6 {[%emt 0:00:00]} 55. Rxd6 {[%emt 0:00:00]} Rf4 {[%emt 0:00:00]} 56. Kg3 {[%emt 0:01:00]} Kf7 {[%emt 0:02:30]} 57. a5 {[%emt 0:00:30]} Ke7 {[%emt 0:00:30]} 58. Rd5 {[%emt 0:00:00]} Rb4 {[%emt 0:00:00]} 59. h4 {[%emt 0:01:00]} Rb3+ {[%emt 0:00:00]} 60. Kg2 {[%emt 0:00:00]} Ke6 {[%emt 0:00:00]} 61. Rc5 {[%emt 0:00:00]} Rb4 {[%emt 0:00:38]} 62. Kf3 {[%emt 0:00:00]} Rb1 {[%emt 0:01:52]} 63. Rc7 {[%emt 0:00:53]} f5 {[%emt 0:00:00]} 64. Ne3 {[%emt 0:01:37]} f4 {[%emt 0:01:00]} 65. Ng2 {[%emt 0:00:00]} Rb3+ {[%emt 0:00:30]} 66. Kf2 {[%emt 0:01:00]} Kf5 {[%emt 0:00:00]} 67. Rg7 {[%emt 0:00:00]} Ke4 {[%emt 0:00:00]} 68. h5 {[%emt 0:00:12]} Rh3 {[%emt 0:00:16]} 69. Rh7 {[%emt 0:00:36]} f3 {[%emt 0:00:24]} 70. Ne3 {[%emt 0:00:33]} Rh2+ {[%emt 0:01:50]} 71. Kg1 {[%emt 0:00:06]} Rh4 {[%emt 0:00:00]} 72. Nd1 {[%emt 0:00:34]} Rg4+ {[%emt 0:00:20]} 73. Kf1 {[%emt 0:00:08]} Rh4 {[%emt 0:00:09]} 74. Nf2+ {[%emt 0:00:21]} Ke3 {[%emt 0:00:11]} 75. Rxb7 {[%emt 0:00:35]} Rxh5 {[%emt 0:01:50]} 76. Rxa7 {[%emt 0:00:20]} e4 {[%emt 0:00:00]} 77. Ke1 {[%emt 0:00:43]} Rb5 {[%emt 0:01:00]} 78. a6 {[%emt 0:01:52]} Ra5 {[%emt 0:00:30]} 79. Ra8 {[%emt 0:00:30]} Ra1+ {[%emt 0:00:30]} 80. Nd1+ {[%emt 0:00:00]} Kf4 {[%emt 0:00:00]} 81. a7 {[%emt 0:01:00]} e3 {[%emt 0:01:00]} 82. Rf8+ {[%emt 0:00:00]} Kg3 {[%emt 0:00:30]} 83. a8=Q {[%emt 0:01:00]} f2+ {[%emt 0:00:00]} 84. Ke2 {[%emt 0:00:30]} f1=Q+ {[%emt 0:00:26]} 85. Kxf1 {[%emt 0:00:00]} Rxa8 {[%emt 0:01:04]} 86. Rxa8 {[%emt 0:00:00]} Kf3 {[%emt 0:00:30]} 87. Ke1 {[%emt 0:00:00]} e2 {[%emt 0:00:00]} 88. Ra3+ {[%emt 0:00:00]} Ke4 {[%emt 0:00:00]} 89. Kxe2 {[%emt 0:00:00]} Kd4 {[%emt 0:00:00]} 90. Ra4+ {[%emt 0:00:00]} Kc5 {[%emt 0:00:00]} 91. Kd3 {[%emt 0:03:30]} Kb5 {[%emt 0:00:00]} 92. Nc3+ {[%emt 0:00:00]} Kc5 {[%emt 0:00:00]} 93. Ra5+ {[%emt 0:00:00]} Kb4 {[%emt 0:00:00]} 94. Rb5+ {[%emt 0:00:00]} Ka3 {[%emt 0:00:00]} 95. Na4 {[%emt 0:00:00]} Kxa4 {[%emt 0:00:00]} 96. Kc4 {[%emt 0:00:00]} Ka3 {[%emt 0:05:00]} 97. Rb8 {[%emt 0:00:00]} Ka2 {[%emt 0:00:00]} 98. Kc3 {[%emt 0:00:00]} Ka1 {[%emt 0:00:00]} 99. Kc2 {[%emt 0:00:00]} Ka2 {[%emt 0:00:00]} 100. Ra8# {[%emt 0:00:00]} 1-0

[Event "FIDE World Cup O10-A 2024"]
[Site "Batumi"]
[Date "2024.06.27"]
[Round "5.2"]
[White "Safin Safarullakhan"]
[Black "Mrozowski, Nikodem"]
[Result "1-0"]
[ECO "B67"]
[WhiteElo "1879"]
[BlackElo "1776"]
[Annotator "NA RC"]
[PlyCount "57"]
[EventDate "2024.06.23"]
[EventType "swiss"]
[EventCountry "GEO"]
[SourceTitle "playchess.com"]
[Source "ChessBase"]
[SourceQuality "1"]
[TimeControl "5400+30"]

1. e4 {[%emt 0:00:39]} c5 {[%emt 0:00:33]} 2. Nf3 {[%emt 0:00:11]} d6 {[%emt 0:00:57]} 3. d4 {[%emt 0:00:14]} cxd4 {[%emt 0:00:53]} 4. Nxd4 {[%emt 0:00:14]} Nf6 {[%emt 0:00:34]} 5. Nc3 {[%emt 0:00:33]} Nc6 {[%emt 0:00:33]} 6. Bg5 {[%emt 0:00:40]} e6 {[%emt 0:01:22]} 7. Qd2 {[%emt 0:01:14]} a6 {[%emt 0:00:18]} 8. O-O-O {[%emt 0:00:45]} Bd7 {[%emt 0:00:33]} 9. f4 {[%emt 0:00:43]} b5 {[%emt 0:02:13]} 10. Bxf6 {[%emt 0:00:53]} gxf6 {[%emt 0:00:23]} 11. Kb1 {[%emt 0:00:52]} Qb6 {[%emt 0:00:13]} 12. Nxc6 {[%emt 0:00:35]} Bxc6 {[%emt 0:00:39]} 13. f5 {[%emt 0:00:24]} b4 {[%emt 0:00:14] B67: Sicilian: Richter-Rauzer: 7...a6 8 0-0-0 Bd7, lines without 9 f4 Be7.} 14. Ne2 {[%emt 0:00:25]} e5 {[%emt 0:00:06]} 15. Ng3 {[%emt 0:01:55]} h5 {[%emt 0:01:11]} 16. h4 {[%emt 0:01:39]} Rd8 {[%emt 0:03:51]} 17. Bc4 {[%emt 0:03:29]} Qc5 {[%emt 0:02:34]} 18. Qe2 {[%emt 0:02:43]} ({Don't do} 18. Bxa6 $6 d5 $14) 18... a5 {[%emt 0:02:30]} (18... Ke7 $16 {was necessary.} 19. b3 (19. Bxa6 Ra8 $16) (19. Nxh5 Rxh5 20. Bxf7 Rh7 $17) 19... Bh6) 19. b3 {[%emt 0:07:08]} Ke7 {[%emt 0:03:54]} 20. Nxh5 {[%emt 0:06:10]} Bxe4 {[%emt 0:09:07]} 21. Qxe4 {[%emt 0:04:11]} Rxh5 {[%emt 0:00:08]} 22. Rd5 {[%emt 0:00:48]} Qf2 {[%emt 0:09:36]} 23. Rxa5 $18 {[%emt 0:08:18]} Qxf5 {[%emt 0:02:36]} 24. Qd5 {[%emt 0:03:27]} Rh7 {[%emt 0:17:14]} 25. Bd3 {[%emt 0:02:15]} Qh5 {[%emt 0:00:20]} 26. Ra7+ {[%emt 0:01:31]} Rd7 {[%emt 0:01:02]} 27. Rxd7+ {[%emt 0:52:04]} Kxd7 {[%emt 0:00:56]} 28. Qb7+ {[%emt 0:00:00]} Ke6 {[%emt 0:01:39]} 29. g4 {[%emt 0:00:00]} 1-0

[Event "FIDE World Cup O10-A 2024"]
[Site "Batumi"]
[Date "2024.06.27"]
[Round "5.3"]
[White "Bolashakov, Nurali"]
[Black "Ramesan, Raunak Amit"]
[Result "1-0"]
[ECO "C55"]
[WhiteElo "1843"]
[BlackElo "1772"]
[Annotator "NA RC"]
[PlyCount "153"]
[EventDate "2024.06.23"]
[EventType "swiss"]
[EventCountry "GEO"]
[SourceTitle "playchess.com"]
[Source "ChessBase"]
[SourceQuality "1"]
[TimeControl "5400+30"]

1. e4 {[%emt 0:00:03]} e5 {[%emt 0:00:05]} 2. Nf3 {[%emt 0:00:07]} Nc6 {[%emt 0:00:02]} 3. Bc4 {[%emt 0:00:45]} Nf6 {[%emt 0:00:12]} 4. d3 {[%emt 0:00:11]} h6 {[%emt 0:00:21]} 5. c3 {[%emt 0:00:46]} d6 {[%emt 0:00:09]} 6. Nbd2 {[%emt 0:00:48]} g5 {[%emt 0:00:13]} 7. Nf1 {[%emt 0:00:48]} g4 {[%emt 0:00:28]} 8. N3d2 {[%emt 0:00:46]} h5 {[%emt 0:00:44]} 9. Nb3 {[%emt 0:18:50]} Be6 {[%emt 0:14:05]} 10. Bg5 {[%emt 0:02:00]} Rg8 $11 {[%emt 0:11:08]} 11. Bh4 {[%emt 0:10:26]} Bxc4 {[%emt 0:07:33]} 12. dxc4 {[%emt 0:00:10]} Bh6 {[%emt 0:05:45]} 13. Ng3 {[%emt 0:10:26]} Bg5 {[%emt 0:02:58]} 14. Bxg5 {[%emt 0:00:06]} Rxg5 {[%emt 0:00:07]} 15. h4 {[%emt 0:00:19]} Rg8 {[%emt 0:09:26]} 16. Qe2 {[%emt 0:03:31]} Qe7 {[%emt 0:01:36]} 17. Nd2 {[%emt 0:01:40]} Qe6 {[%emt 0:02:33]} 18. Nf5 {[%emt 0:21:08]} Ne7 {[%emt 0:02:29]} 19. Nxe7 {[%emt 0:00:06]} Qxe7 {[%emt 0:00:10]} 20. Nf1 {[%emt 0:00:10]} O-O-O {[%emt 0:04:09]} 21. Ng3 {[%emt 0:00:19]} Rh8 {[%emt 0:01:35]} 22. b4 {[%emt 0:28:05]} Qe6 {[%emt 0:00:49]} 23. a4 {[%emt 0:00:00]} Ng8 {[%emt 0:02:13]} 24. O-O {[%emt 0:00:00]} Ne7 {[%emt 0:03:13]} 25. Nh1 {[%emt 0:00:00]} Ng6 {[%emt 0:01:43]} 26. g3 {[%emt 0:00:00]} f5 {[%emt 0:01:46]} 27. exf5 {[%emt 0:00:00]} Qxf5 {[%emt 0:00:12]} 28. f3 {[%emt 0:00:00]} gxf3 {[%emt 0:00:43]} 29. Rxf3 {[%emt 0:00:00]} Qe6 {[%emt 0:01:43]} 30. Raf1 {[%emt 0:00:00]} Rdg8 {[%emt 0:01:58]} 31. Qe4 {[%emt 0:00:00]} Ne7 {[%emt 0:02:50]} 32. Nf2 {[%emt 0:00:00]} c6 {[%emt 0:02:57]} 33. Kh2 {[%emt 0:00:00]} d5 {[%emt 0:01:26]} 34. cxd5 {[%emt 0:00:00]} cxd5 {[%emt 0:00:14]} 35. Qe3 {[%emt 0:00:00]} e4 {[%emt 0:01:31]} 36. Rf4 {[%emt 0:00:00]} Qb6 {[%emt 0:04:14]} 37. Qxb6 {[%emt 0:00:00]} axb6 {[%emt 0:00:06]} 38. Nd1 {[%emt 0:00:01]} Rg6 {[%emt 0:01:48]} 39. Rf6 {[%emt 0:02:18]} Rxf6 {[%emt 0:04:45]} 40. Rxf6 {[%emt 0:00:04]} Kc7 {[%emt 0:00:45]} 41. Ne3 {[%emt 0:01:45]} Rh7 {[%emt 0:02:37]} 42. Kg2 {[%emt 0:00:32]} Rh8 {[%emt 0:00:32]} 43. Kf2 {[%emt 0:00:43]} Ra8 {[%emt 0:01:07]} 44. Re6 {[%emt 0:01:41]} Kd7 {[%emt 0:01:32]} 45. Rxb6 {[%emt 0:00:05]} Rxa4 {[%emt 0:00:09]} 46. Rxb7+ {[%emt 0:00:04]} Ke8 {[%emt 0:00:58]} 47. Rb5 {[%emt 0:00:52]} Ra2+ {[%emt 0:00:46]} 48. Ke1 {[%emt 0:00:10]} Ra3 {[%emt 0:00:27]} 49. Kd2 {[%emt 0:00:16]} d4 {[%emt 0:00:22]} 50. cxd4 {[%emt 0:00:11]} Rd3+ {[%emt 0:00:05]} 51. Ke2 {[%emt 0:00:11]} Rxd4 {[%emt 0:00:06]} 52. Rb8+ {[%emt 0:00:40]} Rd8 {[%emt 0:01:00]} 53. Rxd8+ {[%emt 0:01:15]} Kxd8 {[%emt 0:00:05]} 54. Kd2 {[%emt 0:00:05]} Ng6 {[%emt 0:01:42]} 55. Kc3 {[%emt 0:00:34]} Ne5 {[%emt 0:00:23]} 56. Kd4 {[%emt 0:00:12]} Nc6+ {[%emt 0:00:47]} 57. Kxe4 {[%emt 0:02:09]} Nxb4 {[%emt 0:00:05]} 58. Kf5 {[%emt 0:00:15]} Ke7 {[%emt 0:00:58]} 59. Kg5 {[%emt 0:00:04]} Kf7 {[%emt 0:00:22]} 60. Kxh5 {[%emt 0:00:07]} Nd3 {[%emt 0:00:13]} 61. g4 {[%emt 0:01:22]} Nf4+ {[%emt 0:00:18]} 62. Kh6 {[%emt 0:00:24]} Kg8 {[%emt 0:00:25]} 63. h5 {[%emt 0:00:30]} Nd3 {[%emt 0:00:47]} 64. g5 {[%emt 0:00:34]} Ne5 {[%emt 0:00:06]} 65. g6 {[%emt 0:00:09]} Kh8 {[%emt 0:00:17]} 66. Kg5 {[%emt 0:00:20]} Nd7 {[%emt 0:00:38]} 67. Ng4 {[%emt 0:01:35]} Nc5 {[%emt 0:00:43]} 68. Kf6 {[%emt 0:00:36]} Ne4+ {[%emt 0:00:06]} 69. Kf7 {[%emt 0:00:54]} Ng5+ {[%emt 0:00:05]} 70. Kf6 {[%emt 0:01:37]} Ne4+ {[%emt 0:00:06]} 71. Ke5 {[%emt 0:00:21]} Nc5 {[%emt 0:00:50]} 72. h6 {[%emt 0:00:39]} Nd7+ {[%emt 0:00:32]} 73. Kf5 {[%emt 0:00:28]} Kg8 {[%emt 0:00:47]} 74. Nf6+ {[%emt 0:00:08]} Nxf6 {[%emt 0:00:05]} 75. Kxf6 {[%emt 0:00:08]} Kh8 {[%emt 0:00:09]} 76. g7+ {[%emt 0:00:20]} Kh7 {[%emt 0:00:28]} 77. Kf7 {[%emt 0:00:06]} 1-0

[Event "FIDE World Cup O10-A 2024"]
[Site "Batumi"]
[Date "2024.06.27"]
[Round "5.4"]
[White "Ashwath Kaushik"]
[Black "Shangin, Lev"]
[Result "1/2-1/2"]
[ECO "B45"]
[WhiteElo "2029"]
[BlackElo "2031"]
[Annotator "NA RC"]
[PlyCount "115"]
[EventDate "2024.06.23"]
[EventType "swiss"]
[EventCountry "GEO"]
[SourceTitle "playchess.com"]
[Source "ChessBase"]
[SourceQuality "1"]
[TimeControl "5400+30"]

1. e4 {[%emt 0:08:06]} c5 {[%emt 0:00:08]} 2. Nf3 {[%emt 0:00:12]} e6 {[%emt 0:00:10]} 3. d4 {[%emt 0:00:14]} cxd4 {[%emt 0:00:05]} 4. Nxd4 {[%emt 0:00:09]} Nf6 {[%emt 0:00:07]} 5. Nc3 {[%emt 0:00:36]} Nc6 {[%emt 0:00:21]} 6. Ndb5 {[%emt 0:02:31]} Bc5 {[%emt 0:00:33]} 7. Bf4 {[%emt 0:00:57]} O-O {[%emt 0:00:39] B45: Sicilian Four Knights.} 8. Bc7 {[%emt 0:00:31]} Qe7 {[%emt 0:00:26]} 9. Bd6 {[%emt 0:01:20]} Bxd6 {[%emt 0:00:26]} 10. Qxd6 {[%emt 0:00:33]} Qd8 {[%emt 0:00:28]} 11. O-O-O {[%emt 0:03:00]} a6 {[%emt 0:04:19]} 12. Nd4 {[%emt 1:18:21]} Nxd4 {[%emt 0:02:45]} 13. Qxd4 {[%emt 0:00:00]} b5 {[%emt 0:02:31]} 14. e5 {[%emt 0:00:00]} Ne8 {[%emt 0:00:19]} 15. Bd3 {[%emt 0:00:00]} Bb7 {[%emt 0:02:17]} 16. Be4 {[%emt 0:00:00]} Bxe4 {[%emt 0:00:30]} 17. Nxe4 {[%emt 0:00:00]} Qc7 {[%emt 0:12:32] [#]} 18. f4 {[%emt 0:00:00]} ({Don't play} 18. Qxd7 $6 Qxe5 19. Qd4 Qf4+ 20. Rd2 Rc8 $11) (18. Rd2 $1 $16) 18... Rc8 {[%emt 0:02:27]} 19. c3 {[%emt 0:00:00]} Qa5 {[%emt 0:07:13] [#]} 20. Kb1 $1 {[%emt 0:00:00]} ({Of course not} 20. Qxd7 $6 Rc4 21. Rd4 Rxd4 22. Qxd4 Qxa2 $11) 20... Rc4 {[%emt 0:01:35]} 21. Qd3 {[%emt 0:00:00]} Nc7 {[%emt 0:08:16]} 22. b3 {[%emt 0:00:00]} Rxe4 {[%emt 0:00:14]} 23. Qxe4 {[%emt 0:00:00]} Nd5 {[%emt 0:00:03]} 24. Rxd5 $1 {[%emt 0:00:00]} exd5 {[%emt 0:00:05]} 25. Qd4 {[%emt 0:00:00]} Qc7 {[%emt 0:54:31]} 26. Kb2 $16 {[%emt 0:00:00]} d6 {[%emt 0:00:00]} 27. Rd1 {[%emt 0:00:00]} dxe5 {[%emt 0:00:00]} 28. fxe5 {[%emt 0:00:00]} Rd8 {[%emt 0:00:00]} 29. Rd3 {[%emt 0:00:00]} g6 {[%emt 0:00:00]} 30. Re3 {[%emt 0:00:00]} Qd7 {[%emt 0:00:00]} 31. g4 {[%emt 0:00:00]} Qe6 {[%emt 0:00:00]} 32. Qf4 {[%emt 0:00:00]} a5 {[%emt 0:00:00]} 33. Qd4 {[%emt 0:00:00]} a4 {[%emt 0:00:00]} 34. Re1 {[%emt 0:00:22]} Qa6 {[%emt 0:00:00]} 35. Qb4 {[%emt 0:06:04]} axb3 {[%emt 0:00:00]} 36. Qxb3 {[%emt 0:03:31]} Qb6 {[%emt 0:00:00]} 37. Re2 {[%emt 0:01:24]} d4 {[%emt 0:00:00]} 38. e6 {[%emt 0:00:39]} dxc3+ {[%emt 0:00:00]} 39. Kc2 {[%emt 0:00:43]} fxe6 {[%emt 0:00:00]} 40. Rxe6 {[%emt 0:00:35]} Qf2+ {[%emt 0:00:00]} 41. Re2+ {[%emt 0:00:34]} Qf7 {[%emt 0:00:00]} 42. Qxf7+ {[%emt 0:00:26]} Kxf7 {[%emt 0:00:00]} 43. Kxc3 {[%emt 0:00:15]} Rd5 {[%emt 0:00:00]} 44. Re4 {[%emt 0:00:25]} Kf6 {[%emt 0:00:00]} 45. h4 {[%emt 0:00:28]} h5 {[%emt 0:01:30]} 46. Kb4 {[%emt 0:01:34]} hxg4 {[%emt 0:00:48]} 47. Rxg4 {[%emt 0:00:00]} Rd2 {[%emt 0:00:35]} 48. a3 {[%emt 0:01:00]} Rb2+ {[%emt 0:01:21]} 49. Kc5 {[%emt 0:00:00]} Rb3 {[%emt 0:00:06]} 50. a4 {[%emt 0:00:00]} bxa4 {[%emt 0:00:04]} 51. Rxa4 {[%emt 0:00:00]} Kf5 {[%emt 0:00:17]} 52. Ra8 {[%emt 0:01:27]} Rh3 {[%emt 0:01:22]} 53. Rh8 {[%emt 0:00:22]} Kg4 {[%emt 0:00:26]} 54. Rh6 {[%emt 0:00:19]} g5 {[%emt 0:08:01]} 55. hxg5 {[%emt 0:00:17]} Rc3+ {[%emt 0:00:00]} 56. Kd4 {[%emt 0:00:14]} Kxg5 {[%emt 0:01:00]} 57. Rh5+ {[%emt 0:01:51]} Kxh5 {[%emt 0:00:30]} 58. Kxc3 {[%emt 0:00:30]} 1/2-1/2

[Event "FIDE World Cup O10-A 2024"]
[Site "Batumi"]
[Date "2024.06.27"]
[Round "5.5"]
[White "Guntaka, Aayansh"]
[Black "Jakhaia, Andria"]
[Result "1-0"]
[ECO "B45"]
[WhiteElo "1872"]
[BlackElo "1652"]
[Annotator "NA RC"]
[PlyCount "75"]
[EventDate "2024.06.23"]
[EventType "swiss"]
[EventCountry "GEO"]
[SourceTitle "playchess.com"]
[Source "ChessBase"]
[SourceQuality "1"]
[TimeControl "5400+30"]

1. e4 {[%emt 0:00:09]} c5 {[%emt 0:00:11]} 2. Nf3 {[%emt 0:00:15]} e6 {[%emt 0:00:11]} 3. d4 {[%emt 0:00:07]} cxd4 {[%emt 0:00:06]} 4. Nxd4 {[%emt 0:00:06]} Nf6 {[%emt 0:00:10]} 5. Nc3 {[%emt 0:00:04]} Nc6 {[%emt 0:00:14]} 6. Ndb5 {[%emt 0:00:05]} Bb4 {[%emt 0:00:14]} 7. a3 {[%emt 0:00:22]} Bxc3+ {[%emt 0:00:08]} 8. Nxc3 {[%emt 0:00:10]} d5 {[%emt 0:00:13]} 9. exd5 {[%emt 0:00:25]} exd5 {[%emt 1:33:33]} 10. Bd3 {[%emt 0:00:18]} d4 {[%emt 0:00:00]} 11. Ne2 {[%emt 0:00:32]} Bg4 {[%emt 0:00:00]} 12. f3 {[%emt 0:00:48]} Bh5 {[%emt 0:00:00]} 13. O-O {[%emt 0:00:17]} O-O {[%emt 0:00:00]} 14. Bg5 {[%emt 0:10:40]} Bg6 {[%emt 0:00:00] is currently scoring better than 14...Qd6. B45: Sicilian Four Knights.} 15. Bxg6 {[%emt 0:03:07]} fxg6 {[%emt 0:00:00]} 16. Qd3 {[%emt 0:08:48]} Re8 $146 {[%emt 0:00:00]} ({Predecessor:} 16... Qb6 17. Rad1 Rad8 18. Nf4 Ne5 19. Qb3+ Qxb3 20. cxb3 h6 21. Bxf6 Rxf6 22. Nd3 Nxd3 23. Rxd3 {½-½ Kaminski,M (1526)-Iwaszkiewicz,K (1530) Baltic Cup-B 2nd 2018 (2)}) 17. Rad1 {[%emt 0:02:19]} Qb6 {[%emt 0:00:00]} 18. Nxd4 {[%emt 0:02:06]} Rad8 {[%emt 0:00:00]} 19. Qb3+ $16 {[%emt 0:01:48]} Qxb3 {[%emt 0:00:00]} 20. Nxb3 {[%emt 0:00:08]} b6 {[%emt 0:00:00]} 21. Rxd8 {[%emt 0:03:24]} Rxd8 {[%emt 0:00:00]} 22. Re1 {[%emt 0:00:51]} Kf7 {[%emt 0:00:00]} 23. Kf2 {[%emt 1:05:11]} Rd5 {[%emt 0:07:00]} 24. Bd2 {[%emt 0:00:00]} Nd7 {[%emt 0:00:00]} 25. Bc3 {[%emt 0:00:00]} Nf8 {[%emt 0:00:00]} 26. Re2 {[%emt 0:00:00]} Ne6 {[%emt 0:00:00]} 27. Rd2 {[%emt 0:00:00]} Rxd2+ {[%emt 0:02:00]} 28. Bxd2 {[%emt 0:00:00]} a5 {[%emt 0:00:00]} 29. a4 {[%emt 0:00:00]} Nc7 {[%emt 0:00:00]} 30. Be3 {[%emt 0:00:00]} Na8 {[%emt 0:00:00]} 31. Ke2 {[%emt 0:00:00]} Ke6 {[%emt 0:00:00]} 32. Nd4+ {[%emt 0:00:00]} Nxd4+ {[%emt 0:00:00]} 33. Bxd4 {[%emt 0:00:00]} Kd5 {[%emt 0:00:00]} 34. Kd3 {[%emt 0:00:00]} g5 {[%emt 0:00:00]} 35. c4+ {[%emt 0:00:00]} Kc6 {[%emt 0:00:00]} 36. Bxg7 {[%emt 0:00:00]} h5 {[%emt 0:00:00]} 37. Bh6 {[%emt 0:00:00]} g4 {[%emt 0:00:00]} 38. f4 {[%emt 0:07:30]} 1-0

[Event "FIDE World Cup O10-A 2024"]
[Site "Batumi"]
[Date "2024.06.27"]
[Round "5.6"]
[White "Tsulaia, Giorgi"]
[Black "Ismailov, Omarbek"]
[Result "1/2-1/2"]
[ECO "B45"]
[WhiteElo "1646"]
[BlackElo "1716"]
[Annotator "NA RC"]
[PlyCount "66"]
[EventDate "2024.06.23"]
[EventType "swiss"]
[EventCountry "GEO"]
[SourceTitle "playchess.com"]
[Source "ChessBase"]
[SourceQuality "1"]
[TimeControl "5400+30"]

1. e4 {[%emt 0:00:10]} c5 {[%emt 0:00:14]} 2. Nf3 {[%emt 0:00:08]} Nc6 {[%emt 0:00:26]} 3. d4 {[%emt 0:00:04]} cxd4 {[%emt 0:00:10]} 4. Nxd4 {[%emt 0:00:03]} Nf6 {[%emt 0:01:08]} 5. Nc3 {[%emt 0:00:15]} e6 {[%emt 0:00:43]} 6. Ndb5 {[%emt 0:00:08]} Bb4 {[%emt 0:00:42]} 7. a3 {[%emt 0:00:16]} Bxc3+ {[%emt 0:00:50]} 8. Nxc3 {[%emt 0:00:17]} h6 {[%emt 0:02:53]} 9. Bd3 {[%emt 0:02:57]} O-O {[%emt 0:02:39]} 10. O-O {[%emt 0:00:48]} d5 {[%emt 0:01:58]} 11. exd5 {[%emt 0:00:23]} exd5 {[%emt 0:00:09]} 12. h3 {[%emt 0:00:32]} d4 {[%emt 0:02:16]} 13. Ne2 {[%emt 0:00:24]} Be6 {[%emt 0:05:19]} 14. Bb5 {[%emt 0:13:25]} Qd5 {[%emt 1:18:03]} 15. Bxc6 {[%emt 0:00:59]} bxc6 {[%emt 0:00:00]} 16. Qxd4 {[%emt 0:03:25]} Rfd8 {[%emt 0:00:00]} 17. Qxd5 {[%emt 0:00:26]} Bxd5 {[%emt 0:00:00]} 18. Nc3 {[%emt 0:03:24]} Be6 {[%emt 0:00:00]} 19. Be3 {[%emt 0:01:05]} Bf5 {[%emt 0:00:00]} 20. Rad1 {[%emt 0:02:36]} Rxd1 {[%emt 0:00:00]} 21. Rxd1 {[%emt 0:00:21]} Bxc2 {[%emt 0:00:00]} 22. Rd6 {[%emt 0:00:50]} Rb8 {[%emt 0:00:00]} 23. b4 {[%emt 0:04:10]} Rc8 {[%emt 0:00:00]} 24. Bxa7 {[%emt 0:01:54]} Ra8 {[%emt 0:00:00]} 25. Bd4 {[%emt 0:01:37]} Rxa3 {[%emt 0:00:00]} 26. Rxc6 {[%emt 0:00:40]} Ne4 {[%emt 0:00:00]} 27. Nb5 {[%emt 0:02:12]} Ra2 {[%emt 0:00:00]} 28. Nc7 {[%emt 0:04:53]} Nd2 {[%emt 0:00:00]} 29. Ra6 {[%emt 0:01:46]} Ba4 {[%emt 0:00:00]} 30. b5 {[%emt 0:00:55]} Rc2 {[%emt 0:00:00]} 31. Rxa4 {[%emt 0:00:25]} Rc1+ {[%emt 0:00:00]} 32. Kh2 {[%emt 0:00:15]} Nf1+ {[%emt 0:00:00]} 33. Kg1 {[%emt 0:00:07]} Ng3+ {[%emt 0:00:00]} 1/2-1/2